{"text_format":"3","workbook":"xlsx","n_sheets":4,"sheets":["Cover","SUMMARY","NSCC","SSCC"],"not_rendered":{"images":1,"external_links":22,"defined_names":3951},"read":"whole","date_system":"1900"}

{"sheet":"Cover","index":0,"n_rows":50,"n_cols":6,"rows_kept":50,"merged":[[0,5,6,8],[8,0,8,8],[9,0,9,8],[10,0,10,8],[11,0,11,8],[12,0,12,8]]}
[{"$nulls":5},"ACTIVITY SCHEDULE"]
{"$rows_empty":8}
["ESKOM REAL ESTATE PROJECT DELIVERY"]
["NATIONAL SECURITY CO-ORDINATION "]
["CENTRE (NSCC)"]
[]
[]
[]
[]
["Use this page as a cover page for the Activity schedule:"]
["1. Tenderers must ensure that adequate provision is made in the pricing schedule for the health and safety measures "]
["required by Eskom"]
["2. The original format pricing schedule must be populated by hand in black ink and will be the document used for"]
["evaluation purposes."]
["3. Tenderers are also required to electronically populate the Excel format and add to the required Flash Drive with your"]
["submission. This will be used to support verification of pricing errors."]
["4. The pricing instructions shall be read prior to pricing this document"]
["5. The PDF submission of the Pricing schedule (all pages) shall be signed by the supplier prior to submission of this tender"]
[]
["PRICING INFORMATION"]
[]
[]
["ENQUIRY NUMBER:"]
[]
[]
[]
["TENDERERS NAME:"]
[]
[]
["THE PRICE IN RAND (excluding Vat):"]
[]
[]
[]
[]
["DATE:"]
[]
[]
[]
["SIGNED BY:"]
[]
[]
[]
["DESIGNATION: "]

{"sheet":"SUMMARY","index":1,"n_rows":25,"n_cols":6,"rows_kept":25,"merged":[[0,0,0,6],[1,0,1,6],[2,0,2,6],[24,1,24,4]]}
["ESKOM REAL ESTATE PROJECT DELIVERY"]
["NATIONAL SECURITY CO-ORDINATION "]
["CENTRE (NSCC) -SUMMARY"]
[]
["sum","DESCRIPTION","UNIT","QUANTITY","RATE","AMOUNT"]
[]
[1,"PRELIMINARIES AND GENERAL","sum",1]
[]
[2,"PROVISIONAL SUMS","sum",1]
[]
[3,"REMOVAL OF EXISTING WORK","sum",1]
[]
[4,"PARTITIONS & CEILINGS","sum",1]
[]
[5,"DOORS ","sum",1]
[]
[6,"FINISHES","sum",1]
[]
[7,"PLUMBING & DRAINAGE ","sum",1]
[]
[8,"FURNITURE ","sum",1]
[]
[9,"INTEGRATED PHYSICAL SECURITY SYSTEM","sum",1]
[]
[null,"TOTAL COST OF PROJECT (EXCL. VAT)"]

{"sheet":"NSCC","index":2,"n_rows":254,"n_cols":9,"rows_kept":254,"merged":[[0,0,0,6],[1,0,1,6],[2,0,2,6],[3,0,3,6],[23,1,23,5],[90,1,90,5],[102,1,102,5],[130,1,130,5],[144,1,144,5],[160,1,160,5],[186,1,186,5],[210,1,210,5],[253,1,253,5]]}
["ESKOM REAL ESTATE PROJECT DELIVERY"]
["NATIONAL SECURITY CO-ORDINATION "]
["CENTRE (NSCC)"]
[]
[]
[]
[]
["ITEM",null,"DESCRIPTION","UNIT","QTY","RATE","AMOUNT"]
[]
[]
[]
[null,null,"BILL NO. 1"]
[]
[1,null,"PRELIMINARIES AND GENERAL"]
[]
["1.1",null,"Fixed P&G including Establishment ","Sum",1,null,{"$f":"F16*E16","v":0}]
[]
["1.2",null,"Time related P&G (Earned value management)","Sum",1,null,{"$f":"F18*E18","v":0}]
[]
["1.3",null,"SHEQ requirements including environmental","Sum",1,null,{"$f":"F20*E20","v":0}]
[]
["1.4",null,"De-Establishment","Sum",1,null,{"$f":"F22*E22","v":0}]
[]
[null,"Sub Total carried to Total Summary",{"$nulls":4},{"$f":"SUM(G15:G22)","v":{"v":0,"d":"R 0.00"}}]
[]
[null,null,"BILL NO 2"]
[]
[2,null,"DESIGNS "]
[]
["2.1",null," Element of Design under Short schedule of cost component, including engineering and draughting services per discipline: Mechanical (HVAC), Control & Instrumentation (C&I), Electrical, Civil & Structural (including Architectural provisions), and Plumbing"]
[]
["2.1.1",null,"Design services and detailed drawings  covering all relevant disciplines including Mechanical (HVAC), Control & Instrumentation (C&I), Electrical, Civil & Structural, Architectural provisions, and Plumbing. ","sum",1,null,{"$f":"F32*E32","v":0}]
[]
["2.2",null,"Heating, Ventilation, and Air Conditioning"]
[]
["2.2.1",null,"Supply, testing, commissioning and certification of a Heating, Ventilation and Air Conditioning (HVAC) system. This includes but is not limited to all associated ductwork, air handling units, ventilation fans, insulation, controls, cabling, bathroom fan extraction and supports as per the engineer’s specifications and drawings.","sum",1,null,{"$f":"F36*E36","v":0}]
[]
[null,null,"HVAC Components-Rate only( This component are deemed to be included in HVAC price)"]
[]
[null,null,"Air Handling Unit (AHU) DX (55KW) ","No",{"v":1,"d":"1.00"},null,"Rate only"]
[]
[null,null,"Condenser VRV/Inverter Type (55KW)","No",{"v":1,"d":"1.00"},null,"Rate only"]
[]
[null,null,"Liquid Pipe & Insulation (28.58 mm diameter @ 60 m Length material copper)","m",{"v":1,"d":"1.00"},null,"Rate only"]
[]
[null,null,"Gas Pipe & Insulation (28.58 mm diameter @ 60 m Length material copper)","m",{"v":1,"d":"1.00"},null,"Rate only"]
[]
[null,null,"Power Supply MCC Breakers for AHU & Condenser ","No",{"v":1,"d":"1.00"},null,"Rate only"]
[]
[null,null,"Extraction Fan for Condensor Plant room (320m^3/min Fan including power supply) ","No",{"v":1,"d":"1.00"},null,"Rate only"]
[]
[null,null,"Variable Air Volume Diffuser average of 200 L/S With Electric Heaters (electric powering for VAV)","No",{"v":1,"d":"1.00"},null,"Rate only"]
[]
[null,null,"Average of 913 mm by 913 mm externally insulated ducting with Total length of 100 m length ","m",{"v":1,"d":"1.00"},null,"Rate only"]
[]
[null,null,"Power and communication cabling for air conditioning units, complete with conduit, terminations, and connections, average length of 40 m to AHU","m",{"v":1,"d":"1.00"},null,"Rate only"]
[]
[null,null,"Bathroom fan extraction ","No",{"v":1,"d":"1.00"},null,"Rate only"]
[]
[null,null,"Return Fan Average of 5000 L/s","No",{"v":1,"d":"1.00"},null,"Rate only"]
[]
[null,null,"Return Ducting ","m",{"v":1,"d":"1.00"},null,"Rate only"]
[]
[null,null,"HVAC COCs (Gas and Electrical)","No",{"v":1,"d":"1.00"},null,"Rate only"]
[]
["2.3",null,"General electrical installation"]
[]
["2.3.1",null,"General electrical installation including Distribution boards, Cabling, UPS system, Small power and Lighting,Earthing,Testing and Commissioning.","sum",{"v":1,"d":"1.00"},null,{"$f":"F68*E68","v":0}]
[]
[null,null,"Electrical Components- Rate only ( This component are deemed to be included in Electrical price)"]
[]
[null,null,"Light Emitting Diode (LED) lights ","No",{"v":1,"d":"1.00"},null,"Rate only"]
[]
[null,null,"Light switches: 16A complete with white cover plates.","No",{"v":1,"d":"1.00"},null,"Rate only"]
[]
[null,null,"Occupancy sensors: 10A / 240V 360° passive infra-red detectors.","No",{"v":1,"d":"1.00"},null,"Rate only"]
[]
[null,null,"Distribution boards ","No",{"v":1,"d":"1.00"},null,"Rate only"]
[]
[null,null,"Standard 230 V socket outlets will be 16 A, 3-pin earthed switched outlets ","No",{"v":1,"d":"1.00"},null,"Rate only"]
[]
[null,null," 10 KVA UPS complete with batteries, cabling, and all necessary accessories to ensure full functionality.","No",{"v":1,"d":"1.00"},null,"Rate only"]
[]
[null,null,"Certificates of Compliance (Electrical)","No",{"v":1,"d":"1.00"},null,"Rate only"]
[]
[]
["2.4",null,"Fire detection installation, Fire protection installation, Smoke extraction installation",{"$nulls":3},{"$f":"F87*E87","v":0}]
[]
["2.4.1",null,"Supply, installation, testing, and commissioning of the fire detection system, fire protection system and smoke extraction system.","sum",{"v":1,"d":"1.00"}]
[]
[null,"Sub Total carried to Total Summary",{"$nulls":4},{"$f":"SUM(G26:G90)","v":{"v":0,"d":"R 0.00"}}]
[]
[null,null,"BILL NO. 3"]
[]
[{"v":3,"d":"3 "},null,"REMOVAL OF EXISTING WORK"]
[]
["3.1",null," Removal of existing works to make space for construction :\n* Breaking down and removing Half brick wall approximately 25m2\n* Dismantle and remove drywall partition n.e 3m high approximately 2m\n* Remove 2 single timber door and frame from partition                                                                             *Remove 2 viewing panel size exc 2.5m2  n.e 5m2  from partition                                                                                  *Lift existing carpets tiles approximately 124,86m2                                           *Hack up and remove existing  floor tiles approximately 36,90m2                                                 *Taking down and removing suspended ceiling including suspension grid approximately 115,21m2                                                                                     *Taking out and removing 2 mirrors ","Sum",{"v":1,"d":"1.00"},null,{"$f":"E97*F97","v":0}]
[]
["3.2",null," Removal of existing plumbing works to make space for construction :                                                                                                      *Take out & remove 2 existing Vitreous china wash hand basin \n*Take out & remove 2 Vitreous china WC pan with flush valve \nand flush pipe                                                                                                                           *Take out & remove 2 Vitreous china wall hung urinal  with flush valve and flush pipe                                                                                                                      *Take out & remove 2 automatic sensor hand dryer                                          *Take out & remove 2 Toilet paper holder from wall\n*Disconnect and block off water and waste supply temporarily","Sum",{"v":1,"d":"1.00"},null,{"$f":"E99*F99","v":0}]
[]
["3.3",null,"Decommissioning of existing HVAC and UPS system, make look good ","Sum",{"v":1,"d":"1.00"},null,{"$f":"E101*F101","v":0}]
[]
[null,"Sub Total carried to Total Summary",{"$nulls":4},{"$f":"SUM(G97:G101)","v":{"v":0,"d":"R 0.00"}}]
[]
[null,null,"BILL NO 4"]
[]
[{"v":4,"d":"4 "},null,"PARTITIONS & CEILINGS"]
[]
[null,null," Partitions"]
[]
["4.1",null,"Supply and install drywall partitioning exc 3m and n.e 3,6m high taken from floor to underside of soffit  to ensure minimal  sound transfer including paint, glasswool cavity bat and \"Fire Stop\" boards complete with top and bottom track ","sum",{"$f":"1","v":{"v":1,"d":"1.00"}},null,{"$f":"E111*F111","v":0}]
[{"$nulls":8},"·     "]
["4.2",null,"Supply and install Toilet cubicles consisting of 20mm thick moist specified partitions, all framed in natural anodised aluminium channel section beading, top rails and fixing components and fitted with all necessary ironmongery comprising standard indicating bolts, combined coat hooks and door stops, and rubber buffers ","sum",{"$f":"1","v":{"v":1,"d":"1.00"}},null,{"$f":"E113*F113","v":0}]
[]
["4.3",null,"Half brick wall in NFP bricks in class II mortar in building up openings including Cutting toothings and bonding new brickwork to existing and making good internal plaster and paint","sum",{"$f":"1","v":{"v":1,"d":"1.00"}},null,{"$f":"E115*F115","v":0}]
[]
["4.4",null,"Supply and install Frameless PVB interlayer(s) Glazing shopfronts to ceiling height with natural anodised aluminium top and bottom rails, with polished stainless steel patch fittings, approved floor spring hinges and locking bolts ","sum",{"$f":"1","v":{"v":1,"d":"1.00"}},null,{"$f":"E117*F117","v":0}]
[]
["4.5",null,"COCs(glazing)","sum",{"$f":"1","v":{"v":1,"d":"1.00"}},null,{"$f":"E119*F119","v":0}]
[]
["4.6",null,"Supply and install one-way mirror film n.e 3m high, including aluminium framing, sealant, and all necessary accessories.","sum",{"$f":"1","v":{"v":1,"d":"1.00"}},null,{"$f":"E121*F121","v":0}]
[]
[null,null,"Ceilings"]
[]
["4.7",null,"Supply and install 10mm suspended ceiling complete with grid system (600 x 600mm)   Lay-in acoustic ceiling tiles","sum",{"$f":"1","v":{"v":1,"d":"1.00"}},null,{"$f":"E125*F125","v":0}]
[]
["4.8",null,"Supply and install new 600x600mm suspended ceiling tiles ","no",{"v":50,"d":"50.00"},null,{"$f":"E127*F127","v":0}]
[]
["4.9",null,"Supply and install horizontal 9.4mm \"Rhino\" gypsum plasterboard with supporting grid/brandering including 12.5mm shadowline shadowline cornice plugged and paint.","sum",{"$f":"1","v":{"v":1,"d":"1.00"}},null,{"$f":"E129*F129","v":0}]
[]
[null,"Sub Total carried to Total Summary",{"$nulls":4},{"$f":"SUM(G111:G129)","v":{"v":0,"d":"R 0.00"}}]
[]
[{"v":5,"d":"5 "},null,"DOORS "]
[]
["5.1",null,"Supply and install 40mm solid timber flush doors with veneer, hung to double rebated steel frames sizes 814x2400mm high including door closer, push plates,wc indicators, paint and suppliers ironmongery complete","no",2,null,{"$f":"E135*F135","v":0}]
[]
["5.2",null,"Supply and install single aluminium door as per system complete with ironmongery, frameless glass, sealing, etc and fixing to brickwork or concrete","no",10,null,{"$f":"E137*F137","v":0}]
[]
["5.3",null,"Supply and install double aluminium door as per system complete with ironmongery, frameless glass, sealing, etc and fixing to brickwork or concrete","no",2,null,{"$f":"E139*F139","v":0}]
[]
["5.4",null,"Supply and install custom design frosting on frameless class design","m2",15,null,{"$f":"E141*F141","v":0}]
[]
["5.5",null,"Supply and install Anodised standard sliding pocket door system, complete with subframes, ironmongery, glass, sealing, etc and fixing to brickwork or concrete","no",3,null,{"$f":"E143*F143","v":0}]
[]
[null,"Sub Total carried to Total Summary",{"$nulls":4},{"$f":"SUM(G135:G143)","v":{"v":0,"d":"R 0.00"}}]
[]
[null,null,"BILL NO 6"]
[]
[{"v":6,"d":"6 "},null,"FINISHES"]
[]
[null,null,"Floor finishes"]
[]
["6.1",null,"Supply and install 1200mm x 600mm Ceramic floor tiles fixed with adhesive to bedding and flush pointed with tinted jointing compound On floors ","sum",{"$f":"1","v":{"v":1,"d":"1.00"}},null,{"$f":"E153*F153","v":0},null,"SPEC FROM ARCHITECTURE"]
[]
["6.2",null,"Supply and install 600mm x 600mm Carpet  floor tiles fixed with adhesive to bedding  and flush pointed with tinted jointing compound ","sum",{"$f":"1","v":{"v":1,"d":"1.00"}},null,{"$f":"E155*F155","v":0}]
[]
[null,null,"Wall finishes"]
[]
["6.3",null,"Supply and install 1200mm x 600mm Ceramic wall tiles fixed with adhesive to plaster and flush pointed with tinted jointing compound On floors ","sum",{"$f":"1","v":{"v":1,"d":"1.00"}},null,{"$f":"E159*F159","v":0}]
[]
[null,"Sub Total carried to Total Summary",{"$nulls":4},{"$f":"SUM(G150:G159)","v":{"v":0,"d":"R 0.00"}}]
[]
[null,null,"BILL NO 7"]
[]
[{"v":7,"d":"7 "},null,"PLUMBING AND DRAINAGE  "]
[]
[null,null,"SANITARY FITTINGS"]
[]
["7.1",null,"Supply and install wash hand basin and mixer complete with plug and waste, trap ,coring & connections","sum",{"v":1,"d":"1.00"},null,{"$f":"E169*F169","v":0}]
[]
["7.2",null,"Supply and install WC pan with soft close toilet seat and water saving dual flushing mechanism and all connections complete","sum",{"v":1,"d":"1.00"},null,{"$f":"E171*F171","v":0}]
[]
["7.3",null,"Supply and install wall urinal with 4,5 litre high level automatic flushing cistern with exposed flush pipe, spreader and waste union","sum",{"v":1,"d":"1.00"},null,{"$f":"E173*F173","v":0}]
[]
["7.4",null,"Supply and install  bathroom fitting including :                                                          * 2 Soap dispenser, wall mounted                                                                                     * 5 lockable toilet roll holder                                                                                                                               *700x2600 mirror                                                                                                              *880x2600 mirror\n*1650x2600 mirror                                                                                                            *500x1400 mirrors approximately (5no)","Sum",{"v":1,"d":"1.00"},null,{"$f":"E175*F175","v":0}]
[]
[null,null,"SANITARY PLUMBING"]
[]
["7.5",null,"Supply and install 50mm & 110mm diameter uPVC sewer pipe connected from toilet outlet to nearest inspection chamber or existing manhole all complete including trap, fittings, fixings and testing ","sum",{"v":1,"d":"1.00"},null,{"$f":"E179*F179","v":0}]
[]
[null,null,"Sundries"]
[]
["7.6",null,"Connect plumbing for waste and water supplies, Testing waste pipe system including","sum",{"v":1,"d":"1.00"},null,{"$f":"E183*F183","v":0}]
[]
["7.7",null," COC (Plumbing)","sum",{"v":1,"d":"1.00"},null,{"$f":"E185*F185","v":0}]
[]
[null,"Sub Total carried to Total Summary",{"$nulls":4},{"$f":"SUM(G164:G183)","v":{"v":0,"d":"R 0.00"}}]
[]
[null,null,"BILL NO 8"]
[]
[{"v":8,"d":"8 "},null,"Furniture"]
[]
[null,null,"Supply and install:"]
[]
["8.1",null,"Standard Office Desk and Cabinet 1800x735mm single office desk complete with lockable  storage cabinet","no",{"v":5,"d":"5.00"},null,{"$f":"E195*F195","v":0}]
[]
["8.2",null," 1800x735mm 2-way connect workstation cluster, complete with dividing screen panels and individual lockable storage cabinets","no",{"v":17,"d":"17.00"},null,{"$f":"E197*F197","v":0}]
[]
["8.3",null,"1800x735mm 3-way connect straight workstation cluster, complete with dividing screen panels and lockable under-desk storage cabinets","no",{"v":2,"d":"2.00"},null,{"$f":"E199*F199","v":0}]
[{"$nulls":8},"SPEC FROM ARCHITECTURE"]
["8.4",null,"1800x735mm 4-way connect  straight workstation cluster, including dividing screen panels and lockable under-desk cabinets ","no",{"v":4,"d":"4.00"},null,{"$f":"E201*F201","v":0}]
[]
["8.5",null,"L-shaped desk and lockable cabinet","no",{"v":5,"d":"5.00"},null,{"$f":"E203*F203","v":0}]
[]
["8.6",null,"Round table","no",{"v":1,"d":"1.00"},null,{"$f":"E205*F205","v":0}]
[]
["8.7",null,"Office chairs","no",{"v":76,"d":"76.00"},null,{"$f":"E207*F207","v":0}]
[]
["8.8",null," Proprietary type  shelving with standard powder coated finish Floor to ceiling  shelving in storeroom walls, 3m high including all fixing ","m",{"v":15,"d":"15.00"},null,{"$f":"E209*F209","v":0}]
[]
[null,"Sub Total carried to Total Summary",{"$nulls":4},{"$f":"SUM(G193:G209)","v":{"v":0,"d":"R 0.00"}}]
[]
[null,null,"BILL NO 9"]
[]
[null,null,"INTEGRATED PHYSICAL SECURITY SYSTEM"]
[]
[9,null,"Video walls including mounting brackets, fixtures, power supplies, with a GUI and behaviour models for the site."]
[]
["9.1",null,"Video wall including graphical user interface (GUI) and behaviour models for the site. MX55X2 Clarity Matrix G3 LCD Screens: Complete with 55-inch MX55X2 LCD video wall system panels, including mounting structure and system controller:                                                                                        *Comprising of eight (10) x 55'' LCD screens arranged in a 5 x 2 configuration                                                *Comprising twelve (18) x 55'' LCD screens arranged in a 9 x 2 configuration                                                *Comprising of eight (10) x 55'' LCD screens arranged in a 5 x 2 configuration ","sum",1,null,{"$f":"E219*F219","v":0}]
[]
["9.2",null,"Access Control system"]
[]
[null,null,"Supply, delivery, installation, testing and commissioning:"]
[]
["9.2.1",null,"Access control with tailgating detection at Main entrance plus two rear entrances","No",4,null,{"$f":"E225*F225","v":0}]
[]
["9.2.2",null,"Face recognition access control system at internal and external doors ","No",13,null,{"$f":"E227*F227","v":0}]
[]
["9.2.3",null,"Bi-directional biometric controlled access gate with face recognition and anti-pass back between balcony and walkway to parking ","sum",1,null,{"$f":"E229*F229","v":0}]
[]
["9.2.4",null,"Walk-through metal detector and X-Ray machine at new security access control point to NSCC","sum",1,null,{"$f":"E231*F231","v":0}]
[]
["9.2.5",null,"Integrated Access Control System (IACS) for the integration of all systems","sum",1,null,{"$f":"E233*F233","v":0}]
[]
["9.3",null,"Surveillance & Detection system"]
[]
[null,null,"Supply, delivery, installation, testing and commissioning:",{"$nulls":3},{"$f":"E237*F237","v":0}]
[]
["9.3.1",null,"Camera Surveillance CCTV System with intruder detection including AI dome cameras at two access points","sum",1,null,{"$f":"E239*F239","v":0}]
[]
["9.3.2",null,"Intruder Detection System (IDS) and Intrusion Detection Controls (IDC) to prevent and detect unauthorised access","sum",1,null,{"$f":"E241*F241","v":0}]
[]
["9.4",null,"Security management and Integration systems"]
[]
[null,null,"Supply, delivery, installation, testing and commissioning:"]
[]
["9.4.1",null,"Integrated Security Alarm System ","sum",1,null,{"$f":"E247*F247","v":0}]
[]
["9.4.2",null,"Physical Security Information Management (PSIM) System including IT infrastructure","sum",1,null,{"$f":"E249*F249","v":0}]
[]
["9.4.3",null,"Visitor Management System ","sum",1,null,{"$f":"E251*F251","v":0}]
[]
["9.4.4",null,"Security Management System integrating all subsystems and linking to existing MWP Public Address (PA) system","sum",1,null,{"$f":"E253*F253","v":0}]
[null,"Sub Total carried to Total Summary",{"$nulls":4},{"$f":"SUM(G217:G253)","v":{"v":0,"d":"R 0.00"}}]

{"sheet":"SSCC","index":3,"n_rows":23,"n_cols":7,"rows_kept":23}
[]
[]
[null,1,"Shorter Schedule of Cost Component"]
[null,"1.1","STRUCTURAL ENGINEER","hour",null,null,{"$f":"E4*F4","v":0}]
[null,"1.2","MECHANICAL ENGINEER","hour",null,null,0]
[null,"1.3","ELECTRICAL ENGINEER","hour",null,null,0]
[null,"1.4","CIVIL ENGINEER","hour",null,null,0]
[null,"1.5","FIRE ENGINEER","hour",null,null,0]
[null,"1.6","C & I ENGINEER","hour",null,null,{"$f":"E9*F9","v":0}]
[null,"1.7","ARCHITECT","hour",null,null,{"$f":"E10*F10","v":0}]
[null,"1.8","PLUMBER","hour",null,null,0]
[null,"1.9","DRAUGHTMAN","hour",null,null,0]
[null,"1.10","DOCUMENT CONTROLLER","hour",null,null,0]
[null,"1.11","TECHNICIAN","hour",null,null,0]
[null,"1.12","REFRIGERATION TECHNICIAN","hour",null,null,{"$f":"E15*F15","v":0}]
[null,"1.13","SEMI SKILLED LABOUR","hour",null,null,{"$f":"E16*F16","v":0}]
[null,"1.14","SKILLED LABOUR","hour",null,null,0]
[null,"1.15","GENERAL  WORKER","hour",null,null,0]
[null,"1.16","PROJECT MANAGER ","hour",null,null,{"$f":"E19*F19","v":0}]
[null,"1.17","SHEQ OFFICER","hour",null,null,0]
[null,null,"Subtotal: Subcontract Work and Fee ",{"$nulls":3},{"$f":"SUM(G3:G13)","v":0}]
[]
[null,null,"Total Assessed Compensation Event Quotation",{"$nulls":3},{"$f":"G21","v":0}]